[Event "87th Spanish Championship 2022"]
[Site "Linares"]
[Date "2022.08.13"]
[Round "4.5"]
[White "Perez Candelario, Manuel"]
[Black "Alonso Garcia, Aaron"]
[Result "1/2-1/2"]
[ECO "B48"]
[WhiteElo "2578"]
[BlackElo "2374"]
[Annotator "TA"]
[PlyCount "335"]
[EventDate "2022.08.11"]
[EventType "swiss"]
[EventCountry "ESP"]
[SourceTitle "playchess.com"]
[Source "ChessBase"]
[SourceQuality "1"]
[TimeControl "5400+30"]

{[%evp 176,335,25,0,19,19,25,25,25,25,25,25,25,25,36,25,25,25,56,25,25,25,25,18,25,0,25,21,32,32,32,32,35,23,32,32,33,33,33,33,33,32,33,33,33,0,40,40,43,43,58,58,68,58,73,0,0,0,0,0,0,0,0,0,0,0,0,0,0,0,0,0,0,0,0,0,0,0,0,0,0,0,0,0,0,0,0,0,8,0,8,0,8,8,8,0,8,0,8,0,8,0,8,0,0,0,0,0,0,0,0,0,0,0,0,0,0,0,8,0,8,8,8,0,0,0,0,0,0,0,0,0,0,0,0,0,0,0,0,0,0,0,0,0,0,0,0,0,0,0,0,0,0,0,0,0,0,0,0,0,0,0]} 1. e4 {[%emt 0:00:03]} c5 {[%emt 0:01:41]} 2. Nf3 {[%emt 0:00:05]} e6 {[%emt 0:00:18]} 3. d4 {[%emt 0:00:05]} cxd4 {[%emt 0:00:02]} 4. Nxd4 {[%emt 0:00:05]} Nc6 {[%emt 0:00:02]} 5. Nc3 {[%emt 0:00:05]} Qc7 {[%emt 0:00:05]} 6. Be3 {[%emt 0:00:17]} a6 {[%emt 0:00:05]} 7. g4 {[%emt 0:00:05]} b5 {[%emt 0:02:42]} 8. Nxc6 {[%emt 0:00:22]} Qxc6 {[%emt 0:00:02]} 9. Qd2 {[%emt 0:00:34]} Bb7 {[%emt 0:00:30]} 10. O-O-O {[%emt 0:01:51]} Nf6 {[%emt 0:05:00]} 11. f3 {[%emt 0:00:37]} d6 {[%emt 0:00:55]} 12. g5 {[%emt 0:01:15]} Nd7 {[%emt 0:00:06]} 13. a3 {[%emt 0:02:03]} Rc8 {[%emt 0:04:32]} 14. Rg1 {[%emt 0:04:12]} Ne5 {[%emt 0:04:01]} 15. Qf2 {[%emt 0:03:36]} Nc4 {[%emt 0:09:07]} 16. Bxc4 {[%emt 0:00:18]} Qxc4 {[%emt 0:00:10]} 17. Rd4 {[%emt 0:02:50]} Qc7 {[%emt 0:02:11]} 18. f4 {[%emt 0:04:09]} d5 {[%emt 0:06:27]} 19. exd5 {[%emt 0:03:59]} Bxa3 {[%emt 0:00:03]} 20. Rd3 {[%emt 0:02:15]} Bd6 {[%emt 0:17:24]} 21. dxe6 {[%emt 0:10:12]} O-O {[%emt 0:07:53]} 22. Rgd1 {[%emt 0:03:14]} b4 {[%emt 0:02:59]} 23. Bb6 {[%emt 0:15:00]} Bxf4+ {[%emt 0:04:07]} 24. Kb1 {[%emt 0:00:04]} Qb8 {[%emt 0:13:27]} 25. Ba7 {[%emt 0:12:58]} Qe5 {[%emt 0:03:16]} 26. exf7+ {[%emt 0:09:13]} Rxf7 {[%emt 0:01:33]} 27. Rd8+ {[%emt 0:06:25]} Rf8 {[%emt 0:00:03]} 28. Rxf8+ {[%emt 0:01:19]} Rxf8 {[%emt 0:00:14]} 29. Bc5 {[%emt 0:00:20]} Rc8 {[%emt 0:05:46]} 30. Bd6 {[%emt 0:01:36]} Qe3 {[%emt 0:00:01]} 31. Qxf4 {[%emt 0:00:38]} Qxf4 {[%emt 0:00:01]} 32. Bxf4 {[%emt 0:00:07]} bxc3 {[%emt 0:00:02]} 33. bxc3 {[%emt 0:01:46]} Bc6 {[%emt 0:01:55]} 34. Rd6 {[%emt 0:01:00]} Bb5 {[%emt 0:00:52]} 35. Kb2 {[%emt 0:01:00]} Kf7 {[%emt 0:00:20]} 36. Rb6 {[%emt 0:00:45]} Re8 {[%emt 0:00:24]} 37. Bg3 {[%emt 0:03:39]} Re6 {[%emt 0:00:16]} 38. Bd6 {[%emt 0:01:32]} Ke8 {[%emt 0:01:29]} 39. Rb8+ {[%emt 0:00:42]} Kf7 {[%emt 0:00:33]} 40. Rb7+ {[%emt 0:00:37]} Ke8 {[%emt 0:03:43]} 41. Bb4 {[%emt 0:00:44]} Rg6 {[%emt 0:00:26]} 42. h4 {[%emt 0:00:35]} h6 {[%emt 0:00:05]} 43. Re7+ {[%emt 0:01:39]} Kd8 {[%emt 0:00:11]} 44. gxh6 {[%emt 0:00:40]} gxh6 {[%emt 0:00:25]} 45. Rh7 {[%emt 0:00:18]} Be2 {[%emt 0:00:27]} 46. c4 {[%emt 0:03:22]} Bxc4 {[%emt 0:02:29]} 47. Bd2 {[%emt 0:00:19]} Rb6+ {[%emt 0:00:57]} 48. Ka3 {[%emt 0:02:07]} Rc6 {[%emt 0:00:19]} 49. Bxh6 {[%emt 0:00:25]} Be6 {[%emt 0:00:34]} 50. Bg5+ {[%emt 0:00:28]} Ke8 {[%emt 0:00:02]} 51. Rh8+ {[%emt 0:01:22]} Kf7 {[%emt 0:00:10]} 52. Kb2 {[%emt 0:00:25]} Bf5 {[%emt 0:00:52]} 53. c3 {[%emt 0:00:08]} Rb6+ {[%emt 0:00:35]} 54. Kc1 {[%emt 0:00:25]} Rc6 {[%emt 0:00:07]} 55. Kd2 {[%emt 0:00:32]} Rd6+ {[%emt 0:00:07]} 56. Ke3 {[%emt 0:00:43]} Rc6 {[%emt 0:00:39]} 57. Kd4 {[%emt 0:00:17]} Be6 {[%emt 0:00:14]} 58. Rh7+ {[%emt 0:00:42]} Kg8 {[%emt 0:00:30]} 59. Ra7 {[%emt 0:00:41]} Bf7 {[%emt 0:00:12]} 60. Ra8+ {[%emt 0:01:14]} Kg7 {[%emt 0:00:01]} 61. Rb8 {[%emt 0:00:33]} Rc4+ {[%emt 0:00:34]} 62. Kd3 {[%emt 0:00:04]} Rc6 {[%emt 0:00:03]} 63. Rb4 {[%emt 0:00:30]} Bg6+ {[%emt 0:00:16]} 64. Kd4 {[%emt 0:00:16]} Bf7 {[%emt 0:00:12]} 65. c4 {[%emt 0:00:33]} Rc7 {[%emt 0:02:58]} 66. Bf4 {[%emt 0:01:19]} Rd7+ {[%emt 0:00:11]} 67. Kc5 {[%emt 0:00:09]} Re7 {[%emt 0:00:01]} 68. Ra4 {[%emt 0:01:26]} Re4 {[%emt 0:00:26]} 69. Bg5 {[%emt 0:00:22]} Rg4 {[%emt 0:00:21]} 70. Be3 {[%emt 0:01:07]} Rxh4 {[%emt 0:01:01]} 71. Bd4+ {[%emt 0:00:03]} Kh7 {[%emt 0:00:20]} 72. Rxa6 {[%emt 0:00:05]} Rh1 {[%emt 0:00:43]} 73. Rf6 {[%emt 0:00:43]} Kg8 {[%emt 0:00:30]} 74. Rf3 {[%emt 0:01:15]} Rc1 {[%emt 0:01:16]} 75. Bc3 {[%emt 0:00:07]} Rh1 {[%emt 0:00:12]} 76. Kb5 {[%emt 0:00:43]} Rb1+ {[%emt 0:00:29]} 77. Bb4 {[%emt 0:00:19]} Be8+ {[%emt 0:01:33]} 78. Ka5 {[%emt 0:00:05]} Bc6 {[%emt 0:00:47]} 79. Rf6 {[%emt 0:00:27]} Be4 {[%emt 0:00:38]} 80. Rf4 {[%emt 0:00:42]} Bh1 {[%emt 0:01:04]} 81. Kb5 {[%emt 0:00:54]} Rc1 {[%emt 0:00:18]} 82. c5 {[%emt 0:00:42]} Rc2 {[%emt 0:00:40]} 83. Kb6 {[%emt 0:00:38]} Bd5 {[%emt 0:00:44]} 84. Be1 {[%emt 0:00:37]} Rc1 {[%emt 0:01:12]} 85. Bf2 {[%emt 0:00:10]} Kg7 {[%emt 0:00:31]} 86. Kc7 {[%emt 0:00:29]} Kg6 {[%emt 0:00:24]} 87. Kd6 {[%emt 0:00:06]} Bh1 {[%emt 0:00:05]} 88. Ke5 {[%emt 0:00:43]} Rc2 {[%emt 0:00:40]} 89. Kd6 {[%emt 0:01:11]} Rd2+ {[%emt 0:00:27]} 90. Kc7 {[%emt 0:00:11]} Rc2 {[%emt 0:00:12]} 91. Bd4 {[%emt 0:00:18]} Kg5 {[%emt 0:00:27]} 92. Rf8 {[%emt 0:00:18]} Be4 {[%emt 0:00:19]} 93. Kd6 {[%emt 0:00:40]} Bg2 {[%emt 0:00:19]} 94. Be3+ {[%emt 0:00:35]} Kg6 {[%emt 0:00:37]} 95. Ke5 {[%emt 0:00:33]} Kg7 {[%emt 0:00:13]} 96. Rf4 {[%emt 0:00:52]} Kg6 {[%emt 0:01:19]} 97. Rg4+ {[%emt 0:00:33]} Kf7 {[%emt 0:00:16]} 98. Kd6 {[%emt 0:00:15]} Kf6 {[%emt 0:00:46]} 99. Rg3 {[%emt 0:00:37]} Be4 {[%emt 0:00:39]} 100. Rg4 {[%emt 0:00:36]} Bg2 {[%emt 0:00:20]} 101. Rg8 {[%emt 0:00:32]} Be4 {[%emt 0:00:19]} 102. Rf8+ {[%emt 0:00:09]} Kg7 {[%emt 0:00:23]} 103. Rf4 {[%emt 0:00:05]} Bg2 {[%emt 0:00:15]} 104. Ke6 {[%emt 0:00:47]} Bh3+ {[%emt 0:00:50]} 105. Ke7 {[%emt 0:00:22]} Kg6 $1 {[%emt 0:01:31]} 106. Rf6+ {[%emt 0:00:54]} Kh5 $1 {[%emt 0:00:02]} 107. Kd6 {[%emt 0:00:42]} Bg2 {[%emt 0:00:09]} 108. Ke5 {[%emt 0:00:19]} Kg4 {[%emt 0:00:21]} 109. Rf4+ {[%emt 0:00:31]} Kg3 {[%emt 0:00:14]} 110. Rf6 {[%emt 0:00:36]} Kh2 {[%emt 0:01:27]} 111. Rg6 {[%emt 0:00:24]} Kh3 {[%emt 0:01:39]} 112. Kd4 {[%emt 0:00:17]} Bf1 {[%emt 0:00:49]} 113. Ke4 {[%emt 0:00:28]} Bg2+ {[%emt 0:00:44]} 114. Kd3 {[%emt 0:00:13]} Ra2 {[%emt 0:00:12]} 115. c6 {[%emt 0:00:48]} (115. Kc4 $16) 115... Ra3+ $11 {[%emt 0:00:46]} 116. Kd4 {[%emt 0:00:24]} Ra4+ {[%emt 0:00:34]} 117. Kc5 {[%emt 0:00:38]} Bxc6 $1 {[%emt 0:00:25]} 118. Rxc6 {[%emt 0:00:06]} Kg4 {[%emt 0:00:06]} 119. Rf6 {[%emt 0:00:23]} Re4 {[%emt 0:00:01]} 120. Bd4 {[%emt 0:00:30]} Re8 {[%emt 0:00:01]} 121. Kd5 {[%emt 0:00:11]} Re1 {[%emt 0:00:14]} 122. Rf8 {[%emt 0:00:44]} Re2 {[%emt 0:00:14]} 123. Rf1 {[%emt 0:00:35]} Kg5 {[%emt 0:00:11]} 124. Be5 {[%emt 0:00:25]} Ra2 {[%emt 0:00:45]} 125. Rf3 {[%emt 0:00:44]} Rg2 {[%emt 0:00:15]} 126. Ke6 {[%emt 0:00:20]} Kg4 {[%emt 0:00:19]} 127. Ra3 {[%emt 0:00:57]} Rg1 {[%emt 0:00:10]} 128. Ra2 {[%emt 0:00:38]} Rb1 {[%emt 0:00:13]} 129. Ra4+ {[%emt 0:00:25]} Kf3 {[%emt 0:00:34]} 130. Kf5 {[%emt 0:00:09]} Rb3 {[%emt 0:00:04]} 131. Rh4 {[%emt 0:00:26]} Re3 {[%emt 0:00:25]} 132. Rh2 {[%emt 0:00:57]} Rd3 {[%emt 0:00:42]} 133. Rh8 {[%emt 0:00:45]} Ke3 {[%emt 0:00:33]} 134. Rh3+ {[%emt 0:00:37]} Kd2 {[%emt 0:00:01]} 135. Rh2+ {[%emt 0:00:07]} Ke3 {[%emt 0:00:45]} 136. Rh1 {[%emt 0:00:50]} Kf3 {[%emt 0:00:31]} 137. Rh2 {[%emt 0:00:28]} Ke3 {[%emt 0:00:02]} 138. Rh4 {[%emt 0:00:07]} Kf3 {[%emt 0:00:29]} 139. Bd4 {[%emt 0:00:09]} Kg3 {[%emt 0:00:23]} 140. Rg4+ {[%emt 0:00:18]} Kf3 {[%emt 0:00:12]} 141. Rf4+ {[%emt 0:00:56]} Kg3 {[%emt 0:00:45]} 142. Bf2+ {[%emt 0:00:06]} Kg2 {[%emt 0:00:11]} 143. Kg4 {[%emt 0:00:25]} Rd8 {[%emt 0:00:13]} 144. Bh4 {[%emt 0:00:14]} Rg8+ {[%emt 0:00:35]} 145. Bg5 {[%emt 0:00:05]} Ra8 {[%emt 0:00:11]} 146. Rd4 {[%emt 0:00:34]} Ra2 {[%emt 0:00:07]} 147. Rd3 {[%emt 0:00:20]} Rc2 {[%emt 0:00:43]} 148. Bf4 {[%emt 0:00:18]} Kf2 {[%emt 0:00:19]} 149. Re3 {[%emt 0:00:28]} Rc8 {[%emt 0:00:58]} 150. Rh3 {[%emt 0:00:29]} Ke2 {[%emt 0:00:15]} 151. Kf5 {[%emt 0:01:18]} Rc5+ {[%emt 0:01:33]} 152. Ke4 {[%emt 0:00:13]} Rc4+ {[%emt 0:00:12]} 153. Ke5 {[%emt 0:00:04]} Rc8 {[%emt 0:00:13]} 154. Kd4 {[%emt 0:00:29]} Ra8 {[%emt 0:00:21]} 155. Be5 {[%emt 0:00:37]} Ra4+ {[%emt 0:00:27]} 156. Kd5 {[%emt 0:00:05]} Rg4 {[%emt 0:00:17]} 157. Rb3 {[%emt 0:00:59]} Rh4 {[%emt 0:00:24]} 158. Bg3 {[%emt 0:00:55]} Ra4 {[%emt 0:00:20]} 159. Bd6 {[%emt 0:01:19]} Rh4 {[%emt 0:00:25]} 160. Ke5 {[%emt 0:00:12]} Ra4 {[%emt 0:00:30]} 161. Bb4 {[%emt 0:00:41]} Ra8 {[%emt 0:00:08]} 162. Kf4 {[%emt 0:00:30]} Re8 {[%emt 0:00:30]} 163. Bd6 {[%emt 0:00:31]} Rh8 {[%emt 0:00:41]} 164. Ke4 {[%emt 0:00:12]} Kd2 {[%emt 0:00:31]} 165. Rb2+ {[%emt 0:00:16]} Kc1 {[%emt 0:00:03]} 166. Rg2 {[%emt 0:01:11]} Rh4+ {[%emt 0:00:29]} 167. Kd3 {[%emt 0:00:32]} Rh3+ {[%emt 0:00:05]} 168. Bg3 {[%emt 0:00:05]} 1/2-1/2

[Event "87th Spanish Championship 2022"]
[Site "Linares"]
[Date "2022.08.13"]
[Round "4.6"]
[White "Moreno Ruiz, Javier"]
[Black "Cuenca Jimenez, Jose Fernando"]
[Result "0-1"]
[ECO "E43"]
[WhiteElo "2428"]
[BlackElo "2552"]
[Annotator "TA"]
[PlyCount "84"]
[EventDate "2022.08.11"]
[EventType "swiss"]
[EventCountry "ESP"]
[SourceTitle "playchess.com"]
[Source "ChessBase"]
[SourceQuality "1"]
[TimeControl "5400+30"]

{[%evp 19,84,4,27,19,15,16,25,20,20,8,0,0,7,0,0,0,0,-4,0,21,68,23,38,-11,34,-20,37,30,31,0,251,184,623,616,537,385,333,92,97,40,41,48,49,44,48,51,50,69,92,34,37,18,62,27,27,0,0,-599,-582,-592,-579,-565,-547,-692,-689,-607,-543]} 1. d4 {[%emt 0:01:08]} Nf6 {[%emt 0:00:19]} 2. c4 {[%emt 0:00:34]} e6 {[%emt 0:00:15]} 3. Nc3 {[%emt 0:00:16]} Bb4 {[%emt 0:00:05]} 4. e3 {[%emt 0:00:26]} b6 {[%emt 0:01:56]} 5. Bd2 {[%emt 0:00:41]} Bb7 {[%emt 0:02:54]} 6. Nf3 {[%emt 0:00:18]} O-O {[%emt 0:00:45]} 7. Bd3 {[%emt 0:00:52]} d5 {[%emt 0:00:23]} 8. cxd5 {[%emt 0:00:40]} exd5 {[%emt 0:00:05]} 9. Rc1 {[%emt 0:00:21]} a6 {[%emt 0:02:37]} 10. O-O {[%emt 0:00:29]} Bd6 {[%emt 0:01:38]} 11. Ne5 {[%emt 0:00:53] E52: Nimzo-Indian: Rubinstein: 4...0-0 5 Nf3 d5 6 Bd3 b6.} c5 {[%emt 0:01:54]} 12. f4 {[%emt 0:00:44]} Nc6 {[%emt 0:01:55]} 13. Ng4 {[%emt 0:01:34] White has an edge. 13.Ng4 scores better than 13.Ne2.} Be7 {[%emt 0:11:31]} (13... Nxg4 {seems wilder.} 14. Qxg4 c4 15. Bb1 Nb4) 14. Nxf6+ {[%emt 0:01:10]} Bxf6 {[%emt 0:02:16]} 15. dxc5 {[%emt 0:00:24]} (15. Qh5 g6 16. Qf3 Nb4 $15) 15... bxc5 {[%emt 0:01:59]} (15... Nb4 16. Bb1 $16) 16. b3 {[%emt 0:00:26]} (16. Qh5 g6 17. Qh3 (17. Qxd5 $2 Bxc3 18. Qxd8 Rfxd8 $19) 17... Re8 $15) 16... Nb4 {[%emt 0:08:29]} 17. Bb1 {[%emt 0:00:41]} a5 {[%emt 0:07:31]} 18. a3 {[%emt 0:05:34]} (18. Qh5 g6 19. Qg4 Rc8 $15) 18... Na6 {[%emt 0:00:56]} 19. Na4 $40 {[%emt 0:02:38][%mdl 128] [#] White is up to no good.} c4 $146 {[%emt 0:16:53]} (19... Re8 $11) ({Predecessor:} 19... Rc8 20. Qe2 Rc6 21. Rfd1 Qe7 22. Bxa5 Re6 23. Bd2 g6 24. Qb5 d4 25. e4 Rxe4 26. Bxe4 Qxe4 {1-0 (43) Mis,M (2366)-Czopor,M (2239) Szklarska Poreba 2021}) 20. Bc3 {[%emt 0:06:43]} Re8 {[%emt 0:05:57]} 21. Bd4 {[%emt 0:07:13]} (21. bxc4 $14 {might be stronger.} Bxc3 22. Rxc3) 21... Qe7 {[%emt 0:03:21]} 22. Rf3 {[%emt 0:06:17]} (22. bxc4 $14 Bxd4 23. exd4) 22... g6 {[%emt 0:12:45]} (22... Qxa3 23. Bxf6 gxf6 24. Bxh7+ Kf8 25. Rb1 $14 (25. bxc4 Rxe3 26. Ra1 Qe7 $14)) (22... Bxd4 $11 23. exd4 Qf6) 23. f5 $14 {[%emt 0:05:54]} Bxd4 {[%emt 0:03:09]} 24. Qxd4 {[%emt 0:06:46] And now Rh3 would win.} Bc6 $2 {[%emt 0:01:34][%mdl 8192]} (24... Qxa3 25. Rcf1 Rf8 26. Rg3 $18) (24... cxb3 $11 25. Rcf1 Nc7) 25. Rcf1 {[%emt 0:05:30]} ({Don't do} 25. fxg6 $6 hxg6 26. Nb6 (26. Rh3 Qe5 $15) 26... Rad8 $16) 25... Bxa4 $2 {[%emt 0:04:22]} (25... Rad8) 26. fxg6 $18 {[%emt 0:05:39]} ({Weaker is} 26. bxa4 Qc5 $16) 26... fxg6 {[%emt 0:00:11]} 27. Qxd5+ {[%emt 0:03:20]} ({Less strong is} 27. bxa4 Rad8 $11) 27... Kh8 {[%emt 0:00:59]} 28. Qxc4 {[%emt 0:15:53]} (28. bxa4 $18 {is the precise move to win.} Qc5 29. Qf7) 28... Bd7 $16 {[%emt 0:02:43] [#]} 29. Qd4+ {[%emt 0:00:37]} ({White should try} 29. Bxg6 $1 $16 hxg6 (29... Rec8 30. Qd4+) 30. Rf7 Qxe3+ 31. Kh1) 29... Kg8 $14 {[%emt 0:00:56] ...Nc5 is the strong threat.} 30. Rf7 {[%emt 0:00:30][%csl Gf7][%cal Rd4g7][%mdl 64] Skewer} Qxe3+ {[%emt 0:00:05]} 31. Qxe3 {[%emt 0:00:04]} Rxe3 {[%emt 0:00:01]} 32. Rxd7 {[%emt 0:00:08]} Nc5 {[%emt 0:00:26] Prevents Bd3.} 33. Rc7 {[%emt 0:05:51]} Nxb3 {[%emt 0:00:05]} 34. a4 {[%emt 0:01:34]} ({Better is} 34. Ba2 $16 {Hoping for a4.} a4 35. Rb7) 34... Rf8 {[%emt 0:01:36]} 35. Ba2 {[%emt 0:02:02] aiming for Rb7.} Rxf1+ $1 {[%emt 0:00:37]} 36. Kxf1 $11 {[%emt 0:00:04][%mdl 4096] Endgame KRB-KRN} Kh8 {[%emt 0:02:17]} 37. Kf2 {[%emt 0:00:28]} Rd3 {[%emt 0:00:03] Strongly threatening ...Rd2+.} 38. Ke2 {[%emt 0:00:15][%mdl 8192]} (38. Rc2 $11 {and White stays safe.} Nd4 39. Bc4) 38... Rd2+ $19 {[%emt 0:00:03] Black is clearly winning.} 39. Ke3 {[%emt 0:07:06]} Rxa2 {[%emt 0:00:04]} 40. Rc3 {[%emt 0:01:52]} Na1 {[%emt 0:00:02]} 41. Kd4 {[%emt 0:02:49]} Rxa4+ {[%emt 0:02:25]} 42. Ke5 {[%emt 0:00:33]} Kg7 {[%emt 0:00:49] Never resign too early!  Weighted Error Value: White=0.63/Black=0.44} 0-1

[Event "87th Spanish Championship 2022"]
[Site "Linares"]
[Date "2022.08.13"]
[Round "4.7"]
[White "Vega Gutierrez, Sabrina"]
[Black "Asis Gargatagli, Hipolito"]
[Result "1/2-1/2"]
[ECO "C70"]
[WhiteElo "2366"]
[BlackElo "2514"]
[Annotator "TA"]
[PlyCount "119"]
[EventDate "2022.08.11"]
[EventType "swiss"]
[EventCountry "ESP"]
[SourceTitle "playchess.com"]
[Source "ChessBase"]
[SourceQuality "1"]
[TimeControl "5400+30"]

{[%evp 9,119,24,46,26,42,33,37,36,27,33,38,26,35,19,42,20,27,41,6,8,39,0,0,0,0,0,13,7,0,0,0,0,0,0,0,0,12,12,13,0,11,11,11,11,11,11,11,11,11,0,0,0,11,11,11,11,13,13,13,0,0,0,232,232,232,0,0,0,0,0,0,0,0,0,0,0,0,0,0,0,0,0,0,0,0,0,0,0,0,0,0,0,0,0,0,0,6,0,0,0,0,0,0,0,0,0,0,0,0,0,0,0]} 1. e4 {[%emt 0:00:04]} e5 {[%emt 0:00:11]} 2. Nf3 {[%emt 0:00:10]} Nc6 {[%emt 0:00:07]} 3. Bb5 {[%emt 0:00:08]} a6 {[%emt 0:00:19]} 4. Ba4 {[%emt 0:00:07]} Bc5 {[%emt 0:00:32]} 5. c3 {[%emt 0:05:06]} Nge7 {[%emt 0:00:44]} 6. d4 {[%emt 0:04:56] C70: Ruy Lopez: 3...a6 4 Ba4, Norwegian and Delayed Schliemann.} exd4 {[%emt 0:00:19]} 7. cxd4 {[%emt 0:00:08]} Bb4+ {[%emt 0:00:17]} 8. Nc3 {[%emt 0:03:31] White is slightly better.} d5 {[%emt 0:02:05]} 9. exd5 {[%emt 0:00:26]} Qxd5 {[%emt 0:06:38]} 10. O-O {[%emt 0:01:55]} Bxc3 {[%emt 0:00:49]} 11. bxc3 {[%emt 0:00:08]} Bg4 $1 {[%emt 0:02:35]} 12. Bxc6+ {[%emt 0:17:52]} Qxc6 {[%emt 0:17:37] [#]} 13. Ba3 $146 {[%emt 0:04:44] [#] Strongly threatening Re1.} (13. Re1 {seems wilder.} Bxf3 14. gxf3 Kd7 15. d5) ({Predecessor:} 13. Ne5 Bxd1 14. Nxc6 Nxc6 15. Rxd1 O-O-O 16. Re1 Rhe8 17. Bf4 Na5 18. h4 Nc4 19. Kf1 f6 20. g4 b5 21. f3 {½-½ (21) Castillo,G (1842)-Roberts,E (2105) IECG email 2002}) 13... Bxf3 {[%emt 0:02:53]} 14. gxf3 {[%emt 0:00:07] aiming for Re1.} Kd7 {[%emt 0:14:38]} ({Not} 14... Qxc3 15. Bc5 $16) (14... Nf5 $5 {[%cal Re8c8]} 15. Re1+ Kd8 $11) 15. Bxe7 {[%emt 0:08:37]} (15. d5 $5 {[%cal Rd5c6]} Qf6 16. Bxe7 Qxe7 17. Qa4+ Kc8 18. Qg4+ Kb8 19. Qxg7 $14) 15... Kxe7 {[%emt 0:00:06]} 16. Re1+ {[%emt 0:00:15]} Kf8 {[%emt 0:06:15]} 17. d5 {[%emt 0:00:31]} Qc5 {[%emt 0:13:03]} 18. Qb3 {[%emt 0:22:47]} b6 {[%emt 0:12:00]} 19. Qb4 {[%emt 0:04:32]} Qxb4 {[%emt 0:00:44]} 20. cxb4 $11 {[%emt 0:00:02][%mdl 4096] Endgame KRR-KRR} Rd8 {[%emt 0:14:40]} 21. Rac1 {[%emt 0:00:19]} Rd7 {[%emt 0:01:17]} 22. Re3 {[%emt 0:05:05]} Rxd5 {[%emt 0:01:56]} 23. Rxc7 {[%emt 0:00:10] [#] White threatens Rc8+ and mate.} g6 {[%emt 0:00:09]} 24. Rc6 {[%emt 0:05:16]} Rb5 {[%emt 0:00:54]} 25. Re4 {[%emt 0:00:28]} Kg7 {[%emt 0:00:41]} 26. a4 {[%emt 0:00:40]} Rg5+ {[%emt 0:00:04]} 27. Rg4 {[%emt 0:01:38]} Rxg4+ {[%emt 0:00:18]} 28. fxg4 {[%emt 0:00:03] KR-KR} Rb8 {[%emt 0:00:45]} 29. a5 {[%emt 0:07:41]} bxa5 {[%emt 0:00:19]} 30. bxa5 {[%emt 0:00:03]} Rb4 {[%emt 0:00:41]} 31. h3 {[%emt 0:00:12]} Rb3 {[%emt 0:01:07]} 32. Kg2 {[%emt 0:00:05]} Ra3 {[%emt 0:00:42]} 33. Rxa6 {[%emt 0:00:04] Black must now prevent h4.} h5 {[%emt 0:00:08][%cal Bh7h5,Bh5h4][%mdl 32]} 34. g5 {[%emt 0:01:45]} h4 $1 {[%emt 0:00:52]} 35. Ra8 {[%emt 0:00:13]} Kh7 $2 {[%emt 0:00:09]} (35... Rb3 $11 36. a6 Ra3) 36. a6 $18 {[%emt 0:01:19]} Ra5 {[%emt 0:00:26]} 37. f4 {[%emt 0:00:33]} (37. Kf3 $18) 37... Ra3 $1 $11 {[%emt 0:00:03] The position is equal.} 38. a7 {[%emt 0:01:20]} Kg7 {[%emt 0:00:07]} 39. Kf2 {[%emt 0:00:14]} Kh7 {[%emt 0:00:18]} 40. Ke2 {[%emt 0:00:06]} Kg7 {[%emt 0:00:04]} 41. Kd2 {[%emt 0:00:13]} Kh7 {[%emt 0:01:23]} 42. Kc2 {[%emt 0:00:04]} Kg7 {[%emt 0:00:03]} 43. Kb2 {[%emt 0:00:11]} Ra6 {[%emt 0:00:35]} 44. Kb3 {[%emt 0:04:27]} Rb6+ {[%emt 0:00:14]} 45. Kc4 {[%emt 0:00:10] Intending Re8 and mate.} Ra6 {[%emt 0:00:04]} 46. Kd5 {[%emt 0:00:26]} Ra1 {[%emt 0:02:15]} 47. Ke5 {[%emt 0:02:03]} Ra4 {[%emt 0:00:27]} 48. Kd5 {[%emt 0:01:00]} Ra1 {[%emt 0:00:09]} 49. Ke4 {[%emt 0:00:13]} Ra3 $1 {[%emt 0:00:04]} 50. Kd5 {[%emt 0:02:40]} Ra4 {[%emt 0:00:13]} 51. Kc6 {[%emt 0:00:20]} Ra1 {[%emt 0:00:08]} 52. Kd6 {[%emt 0:00:27]} Ra3 {[%emt 0:02:00]} 53. f5 {[%emt 0:00:50]} gxf5 {[%emt 0:00:25]} 54. Ke5 {[%emt 0:00:02]} Ra5+ $1 {[%emt 0:00:08]} 55. Kf4 {[%emt 0:00:02]} Kh7 $1 {[%emt 0:00:38]} 56. Re8 {[%emt 0:01:20]} Rxa7 {[%emt 0:00:28]} 57. Kxf5 {[%emt 0:00:04]} Ra3 {[%emt 0:01:15]} 58. Kg4 {[%emt 0:00:18]} Kg6 {[%emt 0:00:12]} 59. Rg8+ {[%emt 0:00:37]} Kh7 {[%emt 0:00:04]} 60. Re8 {[%emt 0:00:07] Weighted Error Value: White=0.07 (flawless) /Black=0.11 (very precise)} 1/2-1/2